Cogmind - Beta 16 @@@ ROGUE MODE // 2025.12.10 @ 13:01:36 Player: Mozco Result: Destroyed by S-10 Pest with Light Assault Rifle Performance ------------- Evolutions (0) 0 Regions Visited (4) 800 Robots Destroyed (21) 105 Value Destroyed (426) 426 Prototype IDs (23) 460 Alien Tech Used (0) 0 Bonus (285) 285 TOTAL SCORE: 2076 Bonus ------- Aligned with FarCom 300 Friendly Fire -15 Cogmind --------- Core Integrity 0/250 Matter 174/300 Energy 250/250 System Corruption 0% Temperature Cool (0) Movement Core (100) Ox1 Location -9/Mines Parts ------- > --- POWER (1) -------- Ion Engine > --- PROPULSION (2) --- (None) > --- UTILITY (2) ------ Weight Redist. System > --- WEAPON (2) ------- Heavy EM Pulse Gun Rocket Launcher > --- INVENTORY (5) ---- Improved Ion Engine Supersonic Drone Bay (1/1) Heavy EM Pulse Gun Heavy EM Pulse Gun Rocket Launcher Peak State ------------ > --- POWER ------------ Ion Engine > --- PROPULSION ------- (None) > --- UTILITY ---------- Weight Redist. System > --- WEAPON ----------- Heavy EM Pulse Gun Heavy EM Pulse Gun > --- INVENTORY -------- Improved Ion Engine Supersonic Drone Bay Heavy EM Pulse Gun Rocket Launcher Rocket Launcher [Rating: 8] Favorites ----------- Power Ion Engine Engine Ion Engine Propulsion None Utility Weight Redist. System Device Weight Redist. System Weapon Heavy EM Pulse Gun Energy Gun Heavy EM Pulse Gun Ballistic Gun Light Assault Rifle Launcher Rocket Launcher Build | -11 -10 -10 -10 -9 ------- Run | Yrd Mat Min Exi Min Slots Evolved . | . . . . . Power . | . . . . . Propulsion . | . . . . . Utility . | . . . . . Weapon . | . . . . . Parts Attached 13 | 1 10 . . 2 Power 2 | 1 1 . . . Engine 2 | 1 1 . . . Core . | . . . . . Reactor . | . . . . . Propulsion . | . . . . . Treads . | . . . . . Leg . | . . . . . Wheel . | . . . . . Hover . | . . . . . Flight . | . . . . . Utility 1 | . 1 . . . Device 1 | . 1 . . . Storage . | . . . . . Processor . | . . . . . Hackware . | . . . . . Protection . | . . . . . Artifact . | . . . . . Weapon 10 | . 8 . . 2 Energy Gun 5 | . 5 . . . Energy Cannon . | . . . . . Ballistic Gun 3 | . 3 . . . Ballistic Cannon . | . . . . . Launcher 2 | . . . . 2 Special Weapon . | . . . . . Impact Weapon . | . . . . . Slashing Weapon . | . . . . . Piercing Weapon . | . . . . . Special Melee Weapon . | . . . . . Unidentified Prototypes . | . . . . . Parts Lost 4 | . 4 . . . Power 1 | . 1 . . . Propulsion . | . . . . . Utility . | . . . . . Weapon 3 | . 3 . . . Highest Loss Streak 2 | . 2 . . . To Critical Strikes . | . . . . . Average Backups 4 | 2 4 5 5 5 Power . | . 1 1 1 1 Propulsion . | . . . . . Utility . | . . . . 1 Weapon 3 | 2 3 4 3 3 Tool/Special . | . . . . . Unused Backups 5 | . 2 . . 3 Power 1 | . . . . 1 Propulsion . | . . . . . Utility 1 | . . . . 1 Weapon 3 | . 2 . . 1 Tool/Special . | . . . . . Average Slot Usage (%) 47 | . 35 57 57 57 Engine 13 | . 11 14 14 14 Device 10 | . 5 14 14 14 Energy Gun 16 | . 8 28 28 17 Ballistic Gun 4 | . 9 . . . Launcher 2 | . . . . 10 Peak Build Rating 8 | 1 7 7 8 8 Average Rating 5 | . 3 7 7 8 On Entrance 4 | . 1 7 7 8 Avg Prop Armor Cover (%) . | . . . . . Naked Turns . | . . . . . Heaviest Build 12 | 3 11 11 11 12 Greatest Support 9 | 3 9 9 9 9 Greatest Overweight (x) 2 | . 2 1 1 1 Average Overweight (x) . | . . 1 1 1 Largest Inventory Capacity 5 | 5 5 5 5 5 Average Capacity 5 | 5 5 5 5 5 Most Carried 5 | 4 5 5 5 5 Average Carried 4 | 2 4 5 4 5 Final Capacity 5 | 5 5 5 5 5 Final Carried 5 | 4 5 5 5 5 Class Distribution -------------------- 100% | Mutant Dominant Class ---------------- Mutant | -10/Materials Mutant | -10/Mines Mutant | -10/Exiles Mutant | -9/Mines Resources | -11 -10 -10 -10 -9 ----------- Run | Yrd Mat Min Exi Min Matter Collected 394 | 210 150 . . 34 Remotely . | . . . . . Salvage Created 571 | . 531 . . 40 Parts 37 | . 27 . . 10 Haulers Intercepted 1 | . 1 . . . Recyclers Shooed . | . . . . . Parts Field Recycled . | . . . . . Retrieved Matter . | . . . . . Parts Self-Destructed . | . . . . . Prevented . | . . . . . Parts Restored . | . . . . . Kills | -11 -10 -10 -10 -9 ------- Run | Yrd Mat Min Exi Min Combat Hostiles Destroyed 19 | . 11 . . 8 Guns 11 | . 10 . . 1 AOE 8 | . 1 . . 7 Classes Destroyed 4 | . 4 . . . Hauler 1 | . 1 . . . Recycler 1 | . 1 . . . Swarmer 11 | . 3 . . 8 Grunt 8 | . 8 . . . Best Kill Streak 4 | . 4 . . 3 Combat Bots Only 4 | . 4 . . 3 Max Kills in Single Turn 2 | . 1 . . 2 Gunslinging . | . . . . . Exploded 2 | . 1 . . 2 Melee . | . . . . . Uniques/NPCs Destroyed . | . . . . . Combat | -11 -10 -10 -10 -9 -------- Run | Yrd Mat Min Exi Min Hostile Shots Fired 78 | . 62 . . 16 Missed 17 | . 12 . . 5 Hits 61 | . 50 . . 11 Projectile 61 | . 50 . . 11 Critical Strikes 2 | . 2 . . . Damage Taken 726 | . 616 . . 110 Core 255 | . 211 . . 44 Absorbed by Shields . | . . . . . Core Remaining (%) 100 | 100 . . . . Volleys Fired 56 | . 44 . . 12 Largest 2 | . 2 . . 2 Hottest 90 | . 65 . . 90 Shots Fired 91 | . 77 . . 14 Gun 81 | . 77 . . 4 Cannon . | . . . . . Launcher 10 | . . . . 10 Special . | . . . . . Kinetic 54 | . 54 . . . Thermal 7 | . 7 . . . Explosive 10 | . . . . 10 Electromagnetic 20 | . 16 . . 4 Robot Hit Streak 17 | . 17 . . 1 Robot Miss Streak 3 | . 3 . . 2 Penetration Max . | . . . . . Secondary Targets 3 | . 3 . . . Max Gunslinging Chain 1 | . 1 . . . Shots Hit Robots 58 | . 57 . . 1 Core Hits 34 | . 26 . . 8 Critical Kills . | . . . . . Critical Parts Destroyed . | . . . . . Critical Strikes . | . . . . . Melee Attacks . | . . . . . Impact . | . . . . . Slashing . | . . . . . Piercing . | . . . . . Sneak Attacks . | . . . . . Combat Hostiles . | . . . . . Follow-up Attacks . | . . . . . Damage Inflicted 1095 | . 654 . . 441 Guns 613 | . 599 . . 14 Cannons . | . . . . . Explosions 482 | . 55 . . 427 Melee . | . . . . . Ramming . | . . . . . Kinetic 350 | . 350 . . . Thermal 120 | . 120 . . . Explosive 427 | . . . . 427 Electromagnetic 198 | . 184 . . 14 Impact . | . . . . . Slashing . | . . . . . Piercing . | . . . . . Highest Corruption . | . . . . . Average Corruption . | . . . . . Corruption Purged . | . . . . . Corruption Blocked . | . . . . . Overload Shots . | . . . . . Overflow Damage 26 | . . . . 26 Projectiles . | . . . . . Explosions 26 | . . . . 26 Melee . | . . . . . Knockbacks . | . . . . . Impact . | . . . . . Kinetic . | . . . . . Secondary . | . . . . . Self-Inflicted Damage 40 | . 26 . . 14 Shots 2 | . 1 . . 1 Rammed . | . . . . . Targets Rammed . | . . . . . Kicked . | . . . . . Crushed . | . . . . . Highest Temperature 201 | . 201 . . 60 Average Temperature 53 | . 55 . . 33 Received Heat Transfer 345 | . 345 . . . Siege Activations . | . . . . . Martial Activations . | . . . . . Shielding Activations . | . . . . . Robots Disrupted . | . . . . . Combat Hostiles . | . . . . . Robots Corrupted . | . . . . . Combat Hostiles . | . . . . . Parts Fried 1 | . 1 . . . Impact Corruptions . | . . . . . Robots Melted . | . . . . . Combat Hostiles . | . . . . . Parts Melted . | . . . . . Heat Transferred 250 | . 250 . . . Parts Sabotaged . | . . . . . Parts Stolen . | . . . . . Parts Stripped . | . . . . . Power Chain Reactions 1 | . 1 . . . Alert | -11 -10 -10 -10 -9 ------- Run | Yrd Mat Min Exi Min Maximum Alert Level . | . . . . . Low Security (%) 100 | 100 100 100 . 100 Level 1 . | . . . . . Level 2 . | . . . . . Level 3 . | . . . . . Level 4 . | . . . . . Level 5 . | . . . . . High Security . | . . . . . Max Security . | . . . . . Peak Influence 170 | . 170 54 . 156 Initial 54 | . . 54 . . Average 93 | . 96 54 . 98 Influence Increases 586 | . 320 . . 266 Destroy 0b10 Robot/C 380 | . 220 . . 160 Destroy 0b10 Robot/NC 10 | . 10 . . . Destroy Leader 62 | . 42 . . 20 Allied During Kill 2 | . . . . 2 Successful Hack 10 | . 10 . . . Disable Machine 15 | . . . . 15 Destroy Structure 62 | . 8 . . 54 Lose Combat Pursuer 45 | . 30 . . 15 Influence Decreases 430 | . 180 86 54 110 Entered New Map 140 | . . 86 54 . Time Decay 250 | . 140 . . 110 Lost Part 40 | . 40 . . . Squads Dispatched 1 | . 1 . . . Investigation 1 | . 1 . . . Extermination . | . . . . . Reinforcement . | . . . . . Assault . | . . . . . Garrison . | . . . . . Intercept . | . . . . . Searches Triggered . | . . . . . Construction Impeded . | . . . . . Haulers Reinforced . | . . . . . Active Scanning Responses . | . . . . . Cargo Convoy Interrupts . | . . . . . Stealth | -11 -10 -10 -10 -9 --------- Run | Yrd Mat Min Exi Min Distress Signals 2 | . 2 . . . Communications Jammed . | . . . . . Distress Signals . | . . . . . Times Spotted 24 | . 15 . . 9 Peak Tracking Total 7 | . 7 . . 4 Tactical Retreats 3 | . 2 . . 1 Traps | -11 -10 -10 -10 -9 ------- Run | Yrd Mat Min Exi Min Traps Triggered . | . . . . . Indirectly . | . . . . . Trap Hack Attempts . | . . . . . Triggered . | . . . . . Disarmed . | . . . . . Reprogrammed . | . . . . . Reused . | . . . . . Traps Extracted . | . . . . . Installed . | . . . . . Triggered . | . . . . . Machines | -11 -10 -10 -10 -9 ---------- Run | Yrd Mat Min Exi Min Machines Disabled 1 | . . . . 1 Max in Single Turn . | . . . . . Machines Repaired . | . . . . . Machines Dismantled . | . . . . . Machines Sabotaged . | . . . . . Overloaded Fab Kills . | . . . . . Hacking | -11 -10 -10 -10 -9 --------- Run | Yrd Mat Min Exi Min Machines Accessed 4 | . 3 . 1 . Terminals 3 | . 3 . . . Fabricators . | . . . . . Repair Stations . | . . . . . Recycling Units . | . . . . . Scanalyzers . | . . . . . Garrison Access . | . . . . . Total Hacks 14 | . 13 . 1 . Successful 5 | . 4 . 1 . Failed 9 | . 9 . . . Catastrophic . | . . . . . Database Lockouts . | . . . . . Manual 14 | . 13 . 1 . Terminals 13 | . 13 . . . Fabricators . | . . . . . Repair Stations . | . . . . . Recycling Units . | . . . . . Scanalyzers . | . . . . . Garrison Access . | . . . . . Terminal Hacks 3 | . 2 . 1 . Part Schematic 1 | . 1 . . . Robot Analysis 1 | . 1 . . . Proto ID Catalog 1 | . . . 1 . Fabricator Hacks . | . . . . . Repair Station Hacks . | . . . . . Recycling Unit Hacks . | . . . . . Scanalyzer . | . . . . . Garrison Access Hacks . | . . . . . Unauthorized Hacks 2 | . 2 . . . Terminals 2 | . 2 . . . Botnet 2 | . 2 . . . Fabricators . | . . . . . Repair Stations . | . . . . . Recycling Units . | . . . . . Scanalyzers . | . . . . . Garrison Access . | . . . . . Data Cores Recovered . | . . . . . Used . | . . . . . Hacking Detections 3 | . 3 . . . Full Trace Events 2 | . 2 . . . Feedback Events . | . . . . . Feedback Blocked . | . . . . . Robot Schematics Acquired . | . . . . . Robots Built . | . . . . . Authchips . | . . . . . Time . | . . . . . Total Robot Build Rating . | . . . . . Part Schematics Acquired 1 | . 1 . . . Parts Built . | . . . . . Authchips . | . . . . . Time . | . . . . . Total Part Build Rating . | . . . . . Part Studies Acquired . | . . . . . Parts Repaired . | . . . . . Time . | . . . . . Parts Recycled . | . . . . . Recycled Matter . | . . . . . Retrieved Matter . | . . . . . Retrieved Components . | . . . . . Parts Scanalyzed . | . . . . . Part Schematics Acquired . | . . . . . Parts Damaged . | . . . . . Bothacking | -11 -10 -10 -10 -9 ------------ Run | Yrd Mat Min Exi Min Used RIF Installer . | . . . . . Robots Hacked . | . . . . . Non-combat . | . . . . . Combat . | . . . . . Robot Hacks Applied . | . . . . . Relay Couplers Released . | . . . . . Fabnet Peak Effective % . | . . . . . Robots Rewired . | . . . . . Allies Hacked . | . . . . . Hacks Repelled . | . . . . . Allies | -11 -10 -10 -10 -9 -------- Run | Yrd Mat Min Exi Min Total Allies 1 | . . . . 1 Largest Group 1 | . . . . 1 Highest-Rated Group 31 | . . . . 31 Highest-Rated Ally 31 | . . . . 31 Total Orders . | . . . . . Ally Attacks 5 | . . . . 5 Total Damage 21 | . . . . 21 Kills . | . . . . . Allies Corrupted . | . . . . . Allies Melted . | . . . . . Intel | -11 -10 -10 -10 -9 ------- Run | Yrd Mat Min Exi Min Active Infowar (turns) . | . . . . . Robot Analysis Total 1 | . 1 . . . Derelict Logs Recovered . | . . . . . Drone Launches . | . . . . . Drone Recoveries . | . . . . . Exploration | -11 -10 -10 -10 -9 ------------- Run | Yrd Mat Min Exi Min Turns Passed 841 | 25 366 8 220 222 Spaces Moved 787 | 38 385 9 219 136 Core 787 | 38 385 9 219 136 Treads . | . . . . . Legs . | . . . . . Wheels . | . . . . . Hover . | . . . . . Flight . | . . . . . Fastest Speed 50 | 50 50 100 100 100 Average Speed 76 | 50 57 100 100 100 Slowest Speed 150 | 50 150 100 100 100 Overloaded Moves . | . . . . . Propulsion Burnouts . | . . . . . Robots Hopped . | . . . . . Potential Cave-ins . | . . . . . Cave-ins Triggered . | . . . . . Exploration Rate (%) 27 | 3 39 4 59 30 Regions Visited 4 Branch Regions 3 Pre-discovered Areas . | . . . . . Known Exits Taken . | . . . . . Unknown Exits Taken 4 | 1 1 1 1 . Scrap Searched 1 | . . . . 1 Spaces Dug 13 | . . . . 13 Terrain Destroyed 110 | . 7 . . 103 Melee . | . . . . . Projectile . | . . . . . AOE 110 | . 7 . . 103 Terrain Rammed . | . . . . . Walls Destroyed . | . . . . . Machines Disabled . | . . . . . Actions | -11 -10 -10 -10 -9 --------- Run | Yrd Mat Min Exi Min Total 937 | 42 461 8 220 206 Wait 64 | . 9 . . 55 Move 783 | 37 384 8 218 136 Hop . | . . . . . Pick Up 11 | 4 6 . 1 . Fast Attach 6 | 1 5 . . . Attach 5 | . 5 . . . Detach 1 | . 1 . . . Swap 5 | . 2 . . 3 Drop 6 | . 5 . 1 . Fire 56 | . 44 . . 12 Melee . | . . . . . Ram . | . . . . . Kick . | . . . . . Crush . | . . . . . Escape Stasis . | . . . . . Rewire . | . . . . . Trap . | . . . . . Miscellaneous . | . . . . . Route ------- -11/Scrapyard -10/Materials (discovered 2 exits: [*Min x2]) -10/Mines -10/Exiles -9/Mines History --------- Turn | Location | Event 4 | -11/Scrapyard | Discovered new exit (range 16) 26 | -11/Scrapyard | Entered Materials 77 | -10/Materials | Discovered new exit (range 11) 107 | -10/Materials | Discovered new exit (range 14) 226 | -10/Materials | Core integrity fell below 50% 304 | -10/Materials | Core integrity fell below 20% 316 | -10/Materials | Build established: Mutant 392 | -10/Materials | Entered Mines 396 | -10/Mines | Deemed a non-threat by the Exiles lab entrance 396 | -10/Mines | Discovered new exit (range 5) 400 | -10/Mines | Entered Exiles 424 | -10/Exiles | Met 8R-AWN 441 | -10/Exiles | Met EX-HEX 472 | -10/Exiles | Met EX-BIN 483 | -10/Exiles | Aligned with FarCom system 484 | -10/Exiles | Given EX-Vault access code 509 | -10/Exiles | Opened EX-Vault 516 | -10/Exiles | Found Supersonic Drone Bay 535 | -10/Exiles | Warned to stay clear of 0b10 Research branches 576 | -10/Exiles | Met EX-DEC 611 | -10/Exiles | Discovered new exit (range 10) 620 | -10/Exiles | Left Exiles lab with Supersonic Drone Bay 620 | -10/Exiles | Entered Mines 650 | -9/Mines | Met a Derelict bent on vengeance 701 | -9/Mines | Received a Mining Laser from a helpful Derelict 732 | -9/Mines | Assembled infested the area 737 | -9/Mines | Assisted by a Guerilla fighting off Assembled 842 | -9/Mines | Destroyed by S-10 Pest with Light Assault Rifle Last Messages --------------- 00701_ HK-RK2(g): "And why aren't you carrying a mining laser?! Certainly you don't want THEM to uncover you when the ceiling comes crashing down? Here, take my spare." 00704_ HK-RK2(g): "You're apparently new around these parts, I'll cover you." 00715_ HK-RK2(g): "Mining lasers are a lot more useful than you might think..." 00718_ U-05 Engineer lays Concrete. 00719_ U-05 Engineer builds a Wall. 00720_ U-05 Engineer lays Concrete. 00723_ K-01 Serf collects debris. 00725_ U-05 Engineer builds a Wall. 00727_ U-05 Engineer lays Concrete. 00732_ ALERT: Infestation in the mines, dispatching Demolisher response squad. 00737_ A derelict emerges from the shadows: "You need to get out of here! I've been tracking a group of Assembled to figure out where they're coming from, and they're closing on this area, come on!" 00834_ S-10 Pest destroyed. 00841_ The unstable cave ceiling collapses. Map ----- +----------------------------------------------------+ | | | | | | | | | | | | | | | | | | | | | | | | | | | | | | | | | ?????????????????????????????????????????????????? | | ????????????????????????????????????? ???????????? | | ###########???????????????????????? ??????????? | | # ##??????????????????#### ??????????? | | ##??????#####?????# ??????????? | | """ #?????## ##???? # ?????????? | | """ #?????# ##?## ?????????? | | """ #?????# ## * ?s??????? | | """ ##????# *%????????? | | ## ###??## @ # ????????? | | ### ##??###### g ????????? | | ??## ####????## ## ????????? | | #??# ##????## ####???????????????? | | ??## ##????#| ##??????????????????? | | #?# #??### ##???????????????????? | | #?# #??# #????????????????????? | | #?## ##??# #????????#???????????? | | ???# ##??## ##??????? #???????????? | | ???# ##???# #??###### #???????????? | | ???## =###### ##??# #???????????? | | ????## s [ #???# ######???????????? | | ?????## ####### #???# #????????????????? | | ??????## ###?????# ##??# #????????????????? | | ???????# ##???????# ##?# #????????????????? | | ???????## #????????# ### #????????????????? | | ????????# ?????????# ##???????????????? | | ????????## #?????????## #???????????????? | | ?????????## ???????????#### #???????????????? | | ??????????# ?????????????### ## #?????????????? | | ??????????# ????????????????##%## #?????????????? | | ?????????????????????????????#*# ##?????????????? | | ?????????????????????????????# # #??????????????? | | ????????????????????????????? ###???????????????? | | ?????????????????????????????# ?????????????????? | +----------------------------------------------------+ Best States ------------- Heat Dissipation 25 Energy Generation 10 Energy Capacity 250 Matter Stores 300 Matter Capacity 300 Sight Range 16 Terrain Scan Density 10 Additional Mass Support 6 Evasion (%) 50 Item Schematics ----------------- ECM Suite | -10/Materials | Hacked Robot Schematics ------------------ None Fabricated ------------ Nothing Repaired ---------- Nothing Studied --------- None Alien Tech Used ----------------- None Achievements -------------- None Challenges ------------ None Game ------ Seed TowerDisposableNullifier Manual? 0 Play Time 00:10:14 Cumulative 409.6 hours Start 2025.12.10 @ 12:51:30 End 2025.12.10 @ 13:01:36 Sessions 1 Manual Loads 0 Difficulty Rogue Special Mode None Game No. 408 Rogue 404 Adventurer 3 Explorer 1 Win Type - Total 5 Types 4/0/1/0/0/0/0/0/0/0 Lore% 86 Gallery% 80 Achievement% 69 Wizard Run 0 Options --------- Layout 0 ASCII 0 Keyboard 0 Movement Mouse Keybinds 0 Fullscreen 2 Font 18/SmallcapsGlow Map View 76x50 Zoom Use 0% Tactical HUD 1 Map Filters NONE Filters NONE Steam 1 RUN: f0fed27d-9d5a-490a-9483-b81f5a81bb03